bitfinex/quotes_SOLUSD_20220302
["timestamp","ask_amount","ask_price","bid_price","bid_amount"]
[1646187480976,24.5915,98.098,98.02,15.3027]
[1646187483286,102.1,98.097,98.02,15.3027]
[1646187483484,24.5915,98.098,98.02,15.3027]
[1646187483687,24.5915,98.098,98.022,1.99140334]
[1646187483884,24.5915,98.098,98.03,15.3006]
[1646187484084,24.5915,98.098,98.031,1.24212664]
[1646187485786,4.078,98.133,98.04,15.2995]
[1646187485986,5.0,98.138,98.04,15.2995]
[1646187486790,107.1,98.138,98.04,15.2995]
[1646187486992,102.1,98.106,98.04,15.2995]
[1646187491594,22.654,98.106,98.04,15.2995]
[1646187491992,102.1,98.105,98.04,15.2995]
[1646187492192,22.654,98.106,98.04,15.2995]
[1646187493395,102.1,98.105,98.042,1.98096899]
[1646187493595,108.35,98.105,98.042,1.98096899]
[1646187493997,2.49662501,98.104,98.042,0.71266899]
[1646187494196,102.1,98.099,98.042,0.71266899]
[1646187494397,4.078,98.098,98.042,0.00266899]
[1646187494594,102.1,98.097,98.042,0.00266899]
[1646187494800,5.0,98.07,98.042,0.00266899]
[1646187494998,102.1,98.059,98.042,0.00266899]
[1646187495399,102.1,98.059,98.008,0.50996528]
[1646187495599,2.49662501,98.058,98.008,0.50996528]
[1646187495800,102.1,98.057,98.008,0.50996528]
[1646187495998,102.1,98.057,97.972,24.4787]
[1646187496199,102.1,98.049,97.92,12.15]
[1646187496398,102.1,98.039,97.935,21.2968027]
[1646187496598,12.15,98.04,97.935,21.2968027]
[1646187496599,102.1,98.037,97.935,21.2968027]
[1646187496798,102.1,98.037,97.932,5.31995123]
[1646187496799,102.1,98.037,97.937,21.2968027]
[1646187497199,102.1,98.035,97.937,21.2968027]
[1646187497400,102.1,98.029,97.94,15.3144]
[1646187497701,110.22,98.029,97.94,15.3144]
[1646187498707,102.1,98.019,97.92,15.3174]
[1646187498907,102.1,98.017,97.895,5.0]
[1646187499109,102.1,98.017,97.895,3.5]
[1646187499306,102.1,98.015,97.881,1.97796974]
[1646187499508,102.1,98.015,97.892,18.70578839]
[1646187499708,102.1,98.013,97.893,2.44334411]
[1646187499908,102.1,98.009,97.893,2.44334411]
[1646187500109,102.1,97.999,97.9,15.3207]
[1646187500307,15.3199,98.0,97.901,0.91421363]
[1646187500308,102.1,97.997,97.901,0.91421363]
[1646187501927,102.1,97.997,97.91,15.3191]
[1646187504028,102.1,97.997,97.911,1.87587346]
[1646187504431,102.1,97.997,97.92,15.3174]
[1646187504629,102.1,97.997,97.921,5.07555969]
[1646187505431,47.4783,97.998,97.93,15.3168]
[1646187505631,23.6461,98.035,97.931,2.08264351]
[1646187505934,23.6461,98.035,97.932,2.40442776]
[1646187506132,23.6461,98.035,97.933,2.38924698]
[1646187506332,23.6461,98.035,97.933,30.01190447]
[1646187506531,45.43909215,98.034,97.934,13.3947741]
[1646187506732,102.1,98.033,97.936,1.94432962]
[1646187506931,102.1,98.033,97.936,4.22388556]
[1646187507132,102.1,98.033,97.961,5.07555969]
[1646187507533,45.43909215,98.034,97.961,5.07555969]
[1646187507732,102.1,98.033,97.961,5.07555969]
[1646187507933,45.43909215,98.034,97.961,5.07555969]
[1646187508439,45.43909215,98.034,97.97,15.3107]
[1646187511236,102.1,98.033,97.97,15.3107]
[1646187513841,102.1,98.033,97.95,15.3127]
[1646187514040,126.4001,98.033,97.95,15.3127]
[1646187514240,126.4001,98.033,97.93,163.9421]
[1646187514241,126.4001,98.033,97.922,46.11643424]
[1646187514442,2.49662501,98.032,97.922,23.24113424]
[1646187514642,102.1,98.029,97.895,11.30611608]
[1646187514840,12.15,98.03,97.895,11.30611608]
[1646187514841,102.1,98.009,97.902,23.24113424]
[1646187515045,102.1,98.007,97.902,23.24113424]
[1646187515543,102.1,98.005,97.902,23.24113424]
[1646187515741,102.1,98.005,97.896,49.2732]
[1646187515742,102.1,97.999,97.91,15.3194]
[1646187516742,5.0,97.997,97.911,5.92905071]
[1646187517144,5.0,97.997,97.91,15.3194]
[1646187518147,5.0,97.997,97.911,6.85972117]
[1646187521850,4.65913446,97.996,97.911,6.85972117]
[1646187522448,102.1,97.995,97.911,6.85972117]
[1646187523749,102.1,97.995,97.92,15.3185]
[1646187525554,4.65913446,97.994,97.92,15.3185]
[1646187531462,4.65913446,97.994,97.88,12.15]
[1646187531463,102.1,97.989,97.87,51.075]
[1646187531664,106.183,97.989,97.865,3.5]
[1646187531864,2.49662501,97.988,97.865,3.5]
[1646187532062,2.49662501,97.988,97.852,47.3731]
[1646187532063,106.183,97.987,97.852,47.3731]
[1646187532262,102.1,97.958,97.853,8.1596412]
[1646187532467,102.1,97.956,97.853,8.1596412]
[1646187533568,102.1,97.949,97.87,15.3261]
[1646187533765,102.1,97.949,97.871,1.01366226]
[1646187534988,4.65913446,97.948,97.871,1.01366226]
[1646187536088,102.1,97.939,97.852,47.3731]
[1646187536888,125.8992,97.939,97.852,47.3731]
[1646187537090,102.1,97.937,97.853,5.38356062]
[1646187537591,50.81827671,97.938,97.84,15.3306]
[1646187537592,102.1,97.929,97.84,15.3306]
[1646187537790,102.1,97.929,97.811,24.9052]
[1646187537990,102.1,97.929,97.812,15.1864]
[1646187538191,5.0,97.927,97.812,15.1864]
[1646187538590,102.1,97.925,97.818,6.15349113]
[1646187538990,102.1,97.919,97.82,15.333]
[1646187539392,102.1,97.917,97.82,15.333]
[1646187539591,102.1,97.917,97.821,22.47960939]
[1646187539892,102.1,97.915,97.821,22.47960939]
[1646187540294,102.1,97.913,97.821,22.47960939]
[1646187540992,102.1,97.913,97.83,15.3322]
[1646187541393,102.1,97.909,97.83,15.3322]
[1646187542195,102.1,97.909,97.811,24.9052]
[1646187542396,2.49725696,97.908,97.811,24.9052]
[1646187543196,2.49725696,97.908,97.812,5.00866181]
[1646187543596,102.1,97.909,97.812,5.00866181]
[1646187543798,102.1,97.897,97.82,15.3342]
[1646187544199,102.1,97.895,97.82,15.3342]
[1646187545403,29.33353446,97.896,97.82,15.3342]
[1646187546503,102.1,97.895,97.82,15.3342]
[1646187546699,4.65913446,97.896,97.821,2.23891136]
[1646187546903,4.65913446,97.896,97.84,15.3283]
[1646187547602,102.1,97.902,97.841,2.0112275]
[1646187548600,102.1,97.902,97.85,15.3293]
[1646187550006,102.1,97.913,97.85,15.3293]
[1646187550203,24.308,97.914,97.85,15.3293]
[1646187550406,4.65913446,97.915,97.851,2.46501395]
[1646187550604,4.65913446,97.912,97.851,2.46501395]
[1646187550807,4.65913446,97.912,97.86,15.3249]
[1646187551005,4.65913446,97.912,97.861,5.00866181]
[1646187551205,23.2495,97.954,97.861,5.00866181]
[1646187551408,5.0,97.975,97.862,13.91266993]
[1646187551606,23.2495,97.981,97.863,2.42746368]
[1646187551807,4.085,97.997,97.871,1.98651415]
[1646187552010,102.1,97.997,97.88,12.15]
[1646187552210,4.083,98.017,97.88,12.15]
[1646187552211,102.1,97.995,97.881,2.0112275]
[1646187552409,102.1,97.995,97.881,4.56026753]
[1646187552609,102.1,97.995,97.883,1.92499736]
[1646187553009,102.1,97.995,97.9,15.3167]
[1646187553209,44.82067851,97.996,97.901,5.00866181]
[1646187553410,44.82067851,97.996,97.901,9.59788118]
[1646187553613,44.82067851,97.996,97.902,23.77599914]
[1646187553813,44.82067851,97.996,97.903,2.04175506]
[1646187554014,44.82067851,97.996,97.904,2.03442054]
[1646187554216,44.82067851,97.996,97.904,4.58346057]
[1646187554413,44.82067851,97.996,97.904,16.40482852]
[1646187554612,44.82067851,97.996,97.905,2.54904003]
[1646187554820,44.82067851,97.996,97.91,12.15]
[1646187555013,44.82067851,97.996,97.92,15.3156]
[1646187555211,44.82067851,97.996,97.921,2.0112275]
[1646187555413,44.82067851,97.996,97.921,4.56026753]
[1646187555612,4.083,98.017,97.921,4.56026753]
[1646187555914,5.0,98.04,97.931,0.45027849]
[1646187556111,4.081,98.078,97.932,4.081]
[1646187556314,47.8544,98.077,97.934,2.25788718]
[1646187556515,15.3092,98.07,97.94,15.3143]
[1646187556714,106.181,98.069,97.95,12.15]
[1646187556915,106.181,98.069,97.951,2.0112275]
[1646187557117,129.26139328,98.069,97.951,4.56026753]
[1646187557319,129.26139328,98.069,97.951,11.86026753]
[1646187557520,129.26139328,98.069,97.952,2.54904003]
[1646187557917,102.1,98.067,97.952,2.54904003]
[1646187558117,4.081,98.066,97.981,5.00866181]
[1646187558517,106.18,98.067,97.981,5.00866181]
[1646187558718,106.18,98.075,97.981,5.00866181]
[1646187559521,102.1,98.075,97.981,5.00866181]
[1646187560123,102.1,98.075,97.99,15.3074]
[1646187560621,125.18039328,98.075,97.99,15.3074]
[1646187561640,23.08039328,98.075,97.99,15.3074]
[1646187561842,44.3274829,98.076,97.991,2.54904003]
[1646187562042,23.08039328,98.091,98.01,15.3044]
[1646187562243,62.8559,98.109,98.01,15.3044]
[1646187562449,62.8559,98.109,98.011,2.54904003]
[1646187562640,5.0,98.097,98.011,2.54904003]
[1646187562841,62.8559,98.109,98.011,2.54904003]
[1646187563039,52.37852153,98.108,98.012,2.0112275]
[1646187563440,52.37852153,98.108,98.013,2.54904003]
[1646187563840,52.37852153,98.108,98.03,15.3004]
[1646187564039,52.37852153,98.108,98.031,5.00866181]
[1646187565443,52.37852153,98.108,98.04,15.2991]
[1646187568944,52.37852153,98.108,98.02,15.3019]
[1646187569148,24.4704,98.107,98.021,4.078]
[1646187569546,24.4704,98.107,98.014,4.078]
[1646187569746,24.4704,98.107,98.021,2.54904003]
[1646187570046,102.1,98.099,98.022,4.078]
[1646187570247,108.79,98.099,97.998,23.7609]
[1646187570548,102.1,98.097,97.998,23.7609]
[1646187570945,56.63248365,98.084,97.985,6.41064153]
[1646187571145,102.1,98.083,97.986,4.08]
[1646187571345,33.2833,98.0,97.99,15.3067]
[1646187571547,33.2833,98.0,97.991,4.34894141]
[1646187571948,0.63494995,97.999,97.964,4.081]
[1646187572149,0.63494995,97.999,97.95,4.081]
[1646187572752,0.63494995,97.999,97.951,4.94686465]
[1646187573052,0.63494995,97.999,97.97,15.3098]
[1646187575553,0.63494995,97.999,97.971,2.07302466]
[1646187575954,0.63494995,97.999,97.98,15.3064]
[1646187576554,33.2833,98.0,97.98,15.3064]
[1646187581457,33.2833,98.0,97.972,4.081]
[1646187581458,33.2833,98.0,97.943,20.90144368]
[1646187581656,102.1,97.999,97.92,5.0]
[1646187581857,42.0233,98.0,97.92,5.0]
[1646187582057,33.2833,98.0,97.921,27.67588526]
[1646187582256,33.2833,98.0,97.93,51.04]
[1646187582456,33.2833,98.0,97.93,63.19]
[1646187582657,33.2833,98.0,97.931,39.78643355]
[1646187582858,33.2833,98.0,97.94,15.314]
[1646187583058,33.2833,98.0,97.95,12.15]
[1646187583658,14.55491069,98.0,97.951,39.78643355]
[1646187583858,5.62991069,98.0,97.961,2.36957178]
[1646187584059,5.62991069,98.0,97.96,15.3075]
[1646187584060,5.62991069,98.0,97.97,12.15]
[1646187584262,5.62991069,98.0,97.98,12.15]
[1646187584461,4.081,98.08,97.98,12.15]
[1646187584859,24.9172,98.082,97.98,12.15]
[1646187584860,24.9172,98.082,97.99,15.3053]
[1646187585060,24.9172,98.082,97.99,27.4553]
[1646187585259,24.9172,98.082,97.991,21.18908408]
[1646187585463,47.30891617,98.081,97.991,21.18908408]
[1646187585663,47.30891617,98.081,97.991,20.90144368]
[1646187587161,47.30891617,98.081,98.01,15.3007]
[1646187590568,47.30891617,98.081,98.01,23.9707]
[1646187591368,9.078,98.108,98.01,23.9707]
[1646187591571,47.8934,98.109,98.04,15.2979]
[1646187591775,12.15,98.15,98.04,15.2979]
[1646187591776,4.078,98.138,98.04,21.9579]
[1646187592069,4.077,98.151,98.041,0.28212515]
[1646187592271,24.351,98.144,98.04,18.81]
[1646187592473,106.177,98.143,98.04,18.81]
[1646187592877,102.1,98.143,98.04,18.81]
[1646187593073,24.351,98.144,98.06,15.2954]
[1646187596103,102.1,98.143,98.06,15.2954]
[1646187596596,24.351,98.144,98.06,15.2954]
[1646187597997,4.077,98.161,98.061,2.54904003]
[1646187598198,4.077,98.19,98.064,61.34]
[1646187598401,48.4829,98.21,98.1,15.2875]
[1646187598597,4.075,98.209,98.11,12.15]
[1646187598999,48.4829,98.21,98.111,0.57723369]
[1646187599203,4.075,98.241,98.121,2.15300641]
[1646187599401,4.075,98.241,98.13,12.15]
[1646187599600,4.075,98.241,98.131,0.57723369]
[1646187599800,4.075,98.241,98.16,15.281]
[1646187600001,57.90634794,98.24,98.16,15.281]
[1646187600501,175.28814794,98.24,98.14,12.15]
[1646187600701,6.57025696,98.239,98.12,12.15]
[1646187600905,29.38965696,98.239,98.12,12.15]
[1646187601102,2.49725696,98.238,98.12,12.15]
[1646187601302,4.073,98.237,98.12,12.15]
[1646187601502,5.0,98.233,98.12,12.15]
[1646187601702,2.49725696,98.236,98.12,12.15]
[1646187601902,2.49729339,98.232,98.12,12.15]
[1646187602204,48.71241875,98.219,98.14,15.2832]
[1646187602602,2.49729339,98.218,98.14,15.2832]
[1646187603004,48.71241875,98.219,98.14,15.2832]
[1646187603308,4.073,98.252,98.14,37.33224003]
[1646187603505,22.6731,98.255,98.141,20.90144368]
[1646187603704,22.6731,98.255,98.17,15.2779]
[1646187603905,4.073,98.253,98.17,21.5279]
[1646187604104,1.22687731,98.308,98.17,21.5279]
[1646187604105,59.23950252,98.246,98.17,21.5279]
[1646187604305,59.23950252,98.246,98.17,33.6779]
[1646187604705,4.073,98.286,98.17,33.6779]
[1646187604905,24.8513,98.278,98.171,2.54904003]
[1646187605106,24.8513,98.278,98.19,15.2732]
[1646187605707,55.1976095,98.253,98.19,15.2732]
[1646187610716,157.2976095,98.253,98.19,15.2732]
[1646187611511,55.1976095,98.253,98.19,15.2732]
[1646187612113,157.2976095,98.253,98.19,15.2732]
[1646187612314,55.1976095,98.253,98.19,15.2732]
[1646187612815,157.2976095,98.253,98.19,15.2732]
[1646187613014,55.1976095,98.253,98.19,15.2732]
[1646187614318,157.2976095,98.253,98.171,4.072]
[1646187614516,157.2976095,98.253,98.17,15.2784]
[1646187615914,2.49716863,98.252,98.17,15.2784]
[1646187616117,102.1,98.249,98.15,15.2816]
[1646187616516,5.0,98.248,98.15,15.2816]
[1646187616719,102.1,98.249,98.15,15.2816]
[1646187616918,102.1,98.246,98.15,15.2816]
[1646187618022,102.1,98.239,98.15,15.2816]
[1646187618221,102.1,98.237,98.15,15.2816]
[1646187618628,48.80139163,98.238,98.15,15.2816]
[1646187618629,48.80139163,98.238,98.151,22.88848207]
[1646187618828,48.80139163,98.238,98.17,15.2745]
[1646187619024,48.80139163,98.238,98.171,4.073]
[1646187620126,48.80139163,98.238,98.153,4.073]
[1646187620327,56.56139163,98.238,98.153,4.073]
[1646187620530,56.56139163,98.238,98.14,50.933]
[1646187620731,102.1,98.237,98.136,4.073]
[1646187621128,102.1,98.237,98.113,22.88848207]
[1646187621129,103.42836242,98.237,98.119,4.073]
[1646187621333,2.49716863,98.236,98.114,4.073]
[1646187621727,4.073,98.235,98.113,22.88848207]
[1646187621928,102.1,98.229,98.114,4.073]
[1646187622129,4.073,98.228,98.12,15.2873]
[1646187622329,102.1,98.227,98.12,15.2873]
[1646187622529,4.073,98.226,98.12,15.2873]
[1646187622730,102.1,98.216,98.12,15.2873]
[1646187622928,149.8344,98.216,98.12,15.2873]
[1646187623534,157.9044,98.216,98.12,15.2873]
[1646187623731,2.49716863,98.215,98.12,15.2873]
[1646187624032,102.1,98.209,98.12,15.2873]
[1646187624829,5.0,98.203,98.12,15.2873]
[1646187625029,102.1,98.201,98.12,15.2873]
[1646187625233,102.1,98.199,98.11,4.073]
[1646187625433,4.075,98.198,98.082,4.075]
[1646187625633,102.1,98.197,98.072,4.075]
[1646187625832,1.33626783,98.194,98.048,4.075]
[1646187626030,102.1,98.179,98.043,4.075]
[1646187626233,1.22247461,98.174,98.043,4.075]
[1646187626437,102.1,98.169,98.043,4.075]
[1646187626639,102.1,98.137,98.05,15.2973]
[1646187626835,132.5161,98.137,98.051,4.077]
[1646187627638,135.01317678,98.137,98.027,4.077]
[1646187627838,102.1,98.129,98.03,15.3002]
[1646187628439,5.0,98.128,98.03,15.3002]
[1646187628666,4.078,98.127,98.03,15.3002]
[1646187629066,146.56648476,98.119,98.03,15.3002]
[1646187632671,102.1,98.117,98.03,15.3002]
[1646187635277,102.1,98.109,98.011,4.078]
[1646187635477,102.1,98.109,98.01,15.3034]
[1646187635881,102.1,98.109,98.005,10.6428727]
[1646187636079,1.23603341,98.106,97.955,4.078]
[1646187636281,103.55734308,98.103,97.965,5.0]
[1646187636480,102.1,98.089,97.965,5.0]
[1646187636680,102.1,98.069,97.97,15.3101]
[1646187636882,49.9062578,98.068,97.971,4.08]
[1646187637080,49.9062578,98.068,97.981,2.32348759]
[1646187638385,49.9062578,98.068,98.0,15.3039]
[1646187638985,102.1,98.067,98.0,15.3039]
[1646187641404,49.9062578,98.068,98.0,15.3039]
[1646187641804,47.314,98.088,98.0,22.1639]
[1646187642406,47.314,98.088,98.0,34.3139]
[1646187642806,56.3079686,98.087,98.0,27.4539]
[1646187644207,102.1,98.086,98.0,27.4539]
[1646187644409,102.1,98.086,98.0,15.3039]
[1646187644806,56.3079686,98.087,98.0,15.3039]
[1646187646406,47.314,98.088,98.001,2.54904003]
[1646187646607,4.078,98.131,98.03,15.2982]
[1646187646806,52.9286,98.137,98.03,21.3182]
[1646187647006,15.3001,98.13,98.031,2.54904003]
[1646187647411,157.4681912,98.129,98.031,2.54904003]
[1646187648009,157.4681912,98.129,98.05,15.2981]
[1646187648408,55.3681912,98.129,98.05,15.2981]
[1646187653911,55.3681912,98.129,98.051,2.54904003]
[1646187654112,48.8506,98.137,98.051,2.54904003]
[1646187654113,48.8506,98.137,98.07,15.2934]
[1646187654312,63.1305,98.19,98.07,15.2934]
[1646187654313,5.0,98.165,98.07,15.2934]
[1646187654512,5.0,98.165,98.071,27.08094003]
[1646187654712,5.0,98.165,98.072,1.9981569]
[1646187654914,5.0,98.165,98.072,4.54719693]
[1646187655112,5.0,98.165,98.091,2.36989328]
[1646187655315,102.1,98.213,98.091,9.53989328]
[1646187655514,4.075,98.212,98.093,2.18441492]
[1646187655715,1.40928734,98.223,98.094,0.39971832]
[1646187656014,4.075,98.222,98.096,163.87884265]
[1646187656213,47.97831943,98.221,98.122,0.43884265]
[1646187656416,49.2052,98.241,98.13,12.15]
[1646187656616,4.073,98.24,98.133,0.43884265]
[1646187656813,4.073,98.24,98.132,0.43884265]
[1646187657019,4.073,98.24,98.134,2.54904003]
[1646187657215,4.073,98.24,98.15,15.2806]
[1646187657416,50.89976612,98.239,98.15,27.4306]
[1646187657614,102.1,98.238,98.151,2.54904003]
[1646187658418,102.1,98.238,98.17,15.2794]
[1646187659819,50.89976612,98.239,98.17,15.2794]
[1646187660024,50.89976612,98.239,98.18,15.2771]
[1646187660621,5.0,98.253,98.181,2.54904003]
[1646187660822,5.0,98.253,98.181,10.65904003]
[1646187661021,23.9979,98.274,98.181,10.65904003]
[1646187661224,23.9979,98.274,98.182,2.54904003]
[1646187661624,55.98633823,98.254,98.182,2.54904003]
[1646187661825,5.0,98.28,98.182,2.54904003]
[1646187662026,5.0,98.28,98.2,15.2746]
[1646187662224,5.0,98.28,98.201,2.2933701]
[1646187662423,15.2714,98.31,98.201,4.84241013]
[1646187662626,15.2714,98.31,98.202,2.54904003]
[1646187662825,60.80905053,98.309,98.202,2.54904003]
[1646187663028,5.0,98.308,98.202,2.54904003]
[1646187664128,5.0,98.308,98.22,15.2695]
[1646187664426,5.0,98.308,98.22,21.5195]
[1646187664626,5.0,98.308,98.221,2.54904003]
[1646187665029,5.0,98.308,98.221,9.40904003]
[1646187665230,4.07,98.327,98.221,9.40904003]
[1646187665231,4.07,98.327,98.24,15.268]
[1646187665431,51.3744,98.347,98.24,15.268]
[1646187665626,5.0,98.338,98.241,2.54904003]
[1646187665828,5.0,98.338,98.241,9.73904003]
[1646187666228,53.05980642,98.323,98.26,15.2644]
[1646187666427,53.05980642,98.323,98.242,6.61804003]
[1646187666628,53.05980642,98.323,98.242,2.54904003]
[1646187666827,53.05980642,98.323,98.219,2.54904003]
[1646187667027,47.56136157,98.322,98.22,4.07]
[1646187667429,47.56136157,98.322,98.219,2.54904003]
[1646187667430,127.01696157,98.321,98.219,2.54904003]
[1646187667628,5.0,98.318,98.22,15.2707]
[1646187668027,5.0,98.318,98.2,14.69904003]
[1646187668229,24.91696157,98.317,98.2,14.69904003]
[1646187668628,102.1,98.316,98.2,14.69904003]
[1646187668828,102.1,98.314,98.2,14.69904003]
[1646187669032,23.1091,98.315,98.2,14.69904003]
[1646187669033,15.2716,98.31,98.21,15.2733]
[1646187669228,5.0,98.295,98.21,15.2733]
[1646187669428,53.93029117,98.294,98.21,15.2733]
[1646187670628,5.0,98.293,98.21,15.2733]
[1646187671930,5.0,98.29,98.186,4.07]
[1646187672131,5.0,98.29,98.185,2.54904003]
[1646187672730,102.1,98.288,98.185,2.54904003]
[1646187672934,43.78218434,98.269,98.19,15.2754]
[1646187673833,43.78218434,98.269,98.2,15.2748]
[1646187674935,102.1,98.288,98.2,15.2748]
[1646187675136,23.9064,98.289,98.2,17.82384003]
[1646187676135,23.9064,98.289,98.2,35.61384003]
[1646187676535,102.1,98.288,98.2,35.61384003]
[1646187676736,102.1,98.288,98.183,21.19971092]
[1646187676936,102.1,98.288,98.18,15.2768]
[1646187677136,23.9064,98.289,98.18,15.2768]
[1646187677137,102.1,98.286,98.18,15.2768]
[1646187677337,5.0,98.285,98.18,15.2768]
[1646187677537,102.1,98.279,98.18,15.2768]
[1646187677739,102.1,98.279,98.163,22.661]
[1646187678139,102.1,98.277,98.163,22.661]
[1646187678538,127.01696157,98.277,98.163,22.661]
[1646187678738,102.1,98.275,98.163,22.661]
[1646187678938,102.1,98.258,98.163,22.661]
[1646187679138,102.1,98.258,98.17,15.2793]
[1646187680540,5.0,98.258,98.18,15.2778]
[1646187681245,48.74882963,98.259,98.163,22.661]
[1646187681842,48.74882963,98.259,98.19,15.2763]
[1646187685544,107.1,98.275,98.19,15.2763]
[1646187685545,5.0,98.275,98.19,15.2763]
[1646187685742,15.2741,98.29,98.19,17.82534003]
[1646187685944,102.1,98.304,98.19,17.82534003]
[1646187686549,50.189936,98.275,98.19,29.97534003]
[1646187686849,102.1,98.274,98.19,29.97534003]
[1646187687049,102.1,98.274,98.19,15.2763]
[1646187688452,102.1,98.269,98.19,15.2763]
[1646187688867,102.1,98.269,98.17,15.2783]
[1646187689070,103.27062,98.267,98.14,12.15]
[1646187689268,1.1799524,98.266,98.11,12.15]
[1646187689467,1.16490851,98.264,98.117,2.54904003]
[1646187689666,102.1,98.249,98.117,2.54904003]
[1646187689869,5.0,98.233,98.117,2.54904003]
[1646187690068,102.1,98.217,98.117,2.54904003]
[1646187690269,102.1,98.215,98.117,2.54904003]
[1646187691670,5.0,98.213,98.117,2.54904003]
[1646187692072,102.1,98.209,98.12,15.287]
[1646187692473,102.1,98.209,98.12,17.83604003]
[1646187696074,15.2871,98.21,98.12,17.83604003]
[1646187696280,24.0063,98.216,98.14,15.2832]
[1646187696574,24.0063,98.216,98.141,2.54904003]
[1646187696774,24.0063,98.216,98.141,23.74875095]
[1646187696973,24.0063,98.216,98.142,21.19971092]
[1646187697174,24.0063,98.216,98.142,23.74875095]
[1646187697373,24.0063,98.216,98.143,2.54904003]
[1646187697574,24.0063,98.216,98.143,23.74875095]
[1646187697774,24.0063,98.216,98.144,21.19971092]
[1646187697974,24.0063,98.216,98.144,23.74875095]
[1646187698174,24.0063,98.216,98.16,15.2796]
[1646187698376,70.62567199,98.216,98.16,15.2796]
[1646187698575,70.62567199,98.216,98.161,2.54904003]
[1646187699176,102.1,98.249,98.161,2.54904003]
[1646187699577,15.2809,98.25,98.17,15.2792]
[1646187700174,51.13528757,98.231,98.17,15.2792]
[1646187701578,51.13528757,98.231,98.161,2.54904003]
[1646187701777,102.1,98.23,98.15,17.83024003]
[1646187703576,117.3828,98.23,98.15,15.2812]
[1646187710883,15.2828,98.23,98.15,15.2812]
[1646187711083,74.26488757,98.231,98.151,2.02632552]
[1646187711284,74.26488757,98.231,98.17,15.278]
[1646187711686,23.1296,98.231,98.17,15.278]
[1646187712189,102.1,98.265,98.17,15.278]
[1646187712386,149.3626,98.265,98.17,15.278]
[1646187712587,102.1,98.259,98.17,15.278]
[1646187713187,127.01696157,98.259,98.17,15.278]
[1646187713386,2.49301531,98.258,98.154,24.8322]
[1646187713588,2.49301531,98.258,98.15,27.4312]
[1646187713888,102.1,98.248,98.15,15.2812]
[1646187714086,102.1,98.246,98.15,15.2812]
[1646187714285,102.1,98.229,98.15,15.2812]
[1646187714490,102.1,98.227,98.15,15.2812]
[1646187715085,57.36737787,98.228,98.15,15.2812]
[1646187718795,57.36737787,98.228,98.151,4.073]
[1646187718995,57.36737787,98.228,98.17,15.2785]
[1646187719599,102.1,98.246,98.17,15.2785]
[1646187719796,25.07288734,98.265,98.17,15.2785]
[1646187719995,23.6636,98.265,98.2,15.2745]
[1646187720594,58.80740365,98.264,98.2,15.2745]
[1646187725300,58.80740365,98.264,98.201,1.98903016]
[1646187725602,58.80740365,98.264,98.2,17.82354003]
[1646187726001,1.40928734,98.295,98.2,17.82354003]
[1646187726202,1.40928734,98.298,98.21,12.15]
[1646187726402,1.40928734,98.314,98.23,15.2662]
[1646187726603,1.40928734,98.333,98.23,35.0162]
[1646187726804,1.40928734,98.339,98.231,4.51320022]
[1646187727002,4.069,98.359,98.233,2.20612041]
[1646187727003,48.8090223,98.338,98.233,2.20612041]
[1646187727502,48.8090223,98.338,98.232,50.39884003]
[1646187727503,48.8090223,98.338,98.234,27.33847562]
[1646187727705,48.8090223,98.338,98.235,102.1]
[1646187727903,48.8090223,98.338,98.236,2.36038884]
[1646187728105,48.8090223,98.338,98.26,15.2626]
[1646187728303,48.8090223,98.338,98.26,27.4126]